fUST/lending_fUST_20240826
["ID","MTS","AMOUNT","RATE_DAILY","PERIOD"]
[336054700,1724682641208,-692.96,0.00011515,2]
[336054701,1724682641217,-622.2,0.00011515,2]
[336054702,1724682641227,-500.0,0.00011515,2]
[336054703,1724682641237,-500.0,0.00011515,2]
[336054704,1724682641246,-3036.48,0.00011515,2]
[336054705,1724682641256,-577.87,0.00011515,2]
[336054706,1724682641265,-500.0,0.00011515,2]
[336054707,1724682641274,-500.0,0.00011515,2]
[336054708,1724682641284,-500.0,0.00011515,2]
[336054709,1724682641294,-500.0,0.00011515,2]
[336054710,1724682641303,-500.0,0.00011515,2]
[336054711,1724682641312,-500.0,0.00011515,2]
[336054712,1724682641322,-500.0,0.00011515,2]
[336054713,1724682641334,-1174.66,0.00011515,2]
[336054714,1724682641344,-500.0,0.00011515,2]
[336054715,1724682641353,-500.0,0.00011515,2]
[336054716,1724682641363,-967.79,0.00011515,2]
[336054717,1724682641372,-500.0,0.00011515,2]
[336054718,1724682641382,-500.0,0.00011515,2]
[336054719,1724682641391,-500.0,0.00011515,2]
[336054720,1724682641401,-500.0,0.00011515,2]
[336054721,1724682641410,-655.78,0.00011515,2]
[336054722,1724682641419,-700.99,0.00011515,2]
[336054723,1724682641429,-500.0,0.00011515,2]
[336054724,1724682641438,-707.65,0.00011515,2]
[336054725,1724682641448,-983.65,0.00011515,2]
[336054726,1724682641457,-513.66,0.00011515,2]
[336054727,1724682641466,-520.5,0.00011515,2]
[336054728,1724682641476,-1823.92,0.00011515,2]
[336054729,1724682641485,-1823.92,0.00011515,2]
[336054730,1724682641494,-1823.92,0.00011515,2]
[336054731,1724682641503,-731.14,0.00011515,2]
[336054732,1724682641513,-353.35702672,0.00011516,2]
[336054733,1724682641522,-500.0,0.00011516,2]
[336054734,1724682641532,-500.0,0.00011516,2]
[336054735,1724682641543,-500.0,0.00011516,2]
[336054736,1724682641554,-500.0,0.00011516,2]
[336054737,1724682641563,-500.0,0.00011516,2]
[336054738,1724682641572,-500.0,0.00011516,2]
[336054739,1724682641587,-500.0,0.00011516,2]
[336054740,1724682641603,-160.70571739,0.00011516,2]
[336054741,1724682641613,-500.0,0.00011516,2]
[336054742,1724682641622,-500.0,0.00011516,2]
[336054743,1724682641631,-500.0,0.00011516,2]
[336054744,1724682641640,-500.0,0.00011516,2]
[336054745,1724682641651,-500.0,0.00011516,2]
[336054746,1724682641661,-500.0,0.00011516,2]
[336054747,1724682641670,-501.82731712,0.00011516,2]
[336054748,1724682641680,-500.0,0.00011516,2]
[336054749,1724682641689,-500.0,0.00011516,2]
[336054750,1724682641699,-500.0,0.00011516,2]
[336054751,1724682641708,-500.0,0.00011516,2]
[336054752,1724682641718,-500.0,0.00011516,2]
[336054753,1724682641727,-500.0,0.00011516,2]
[336054754,1724682641736,-500.0,0.00011516,2]
[336054755,1724682641746,-500.0,0.00011516,2]
[336054756,1724682641755,-500.0,0.00011516,2]
[336054757,1724682641764,-649.16,0.00011516,2]
[336054758,1724682641778,-500.0,0.00011516,2]
[336054759,1724682641788,-500.0,0.00011516,2]
[336054760,1724682641798,-649.88,0.00011516,2]
[336054761,1724682641807,-500.0,0.00011516,2]
[336054762,1724682641816,-500.0,0.00011516,2]
[336054763,1724682641834,-500.0,0.00011516,2]
[336054764,1724682641844,-500.0,0.00011516,2]
[336054765,1724682641854,-500.0,0.00011516,2]
[336054766,1724682641863,-656.36,0.00011516,2]
[336054767,1724682641873,-500.0,0.00011516,2]
[336054768,1724682641882,-924.1,0.00011516,2]
[336054769,1724682641892,-500.0,0.00011516,2]
[336054770,1724682641902,-500.0,0.00011516,2]
[336054771,1724682641913,-500.0,0.00011516,2]
[336054772,1724682641924,-500.0,0.00011516,2]
[336054773,1724682641934,-501.03948314,0.00011516,2]
[336054774,1724682641944,-500.0,0.00011516,2]
[336054775,1724682641955,-500.0,0.00011516,2]
[336054776,1724682641964,-500.0,0.00011516,2]
[336054777,1724682641973,-500.92660366,0.00011516,2]
[336054778,1724682641982,-500.74322692,0.00011516,2]
[336054779,1724682641991,-500.0,0.00011516,2]
[336054780,1724682642000,-500.0,0.00011516,2]
[336054781,1724682642009,-500.0,0.00011516,2]
[336054782,1724682642019,-500.0,0.00011516,2]
[336054783,1724682642029,-500.0,0.00011516,2]
[336054784,1724682642040,-500.0,0.00011516,2]
[336054785,1724682642061,-500.0,0.00011516,2]
[336054786,1724682642075,-500.0,0.00011516,2]
[336054787,1724682642094,-500.0,0.00011516,2]
[336054788,1724682642104,-500.0,0.00011516,2]
[336054789,1724682642114,-500.0,0.00011516,2]
[336054790,1724682642125,-500.0,0.00011516,2]
[336054791,1724682642136,-500.0,0.00011516,2]
[336054792,1724682642148,-500.0,0.00011516,2]
[336054793,1724682642158,-500.0,0.00011516,2]
[336054794,1724682642169,-626.31365658,0.00011516,2]
[336054795,1724682642179,-500.0,0.00011516,2]
[336054796,1724682642188,-500.0,0.00011516,2]
[336054797,1724682642198,-500.0,0.00011516,2]
[336054798,1724682642208,-500.0,0.00011516,2]
[336054799,1724682642218,-998.79,0.00011516,2]
[336054800,1724682642228,-519.26,0.00011516,2]
[336054801,1724682642239,-500.0,0.00011516,2]
[336054802,1724682642252,-500.0,0.00011516,2]
[336054803,1724682642263,-500.0,0.00011516,2]
[336054804,1724682642272,-500.0,0.00011516,2]
[336054805,1724682642283,-500.0,0.00011516,2]
[336054806,1724682642293,-530.90616032,0.00011516,2]
[336054807,1724682642303,-500.0,0.00011516,2]
[336054808,1724682642313,-500.0,0.00011516,2]
[336054809,1724682642323,-535.81319626,0.00011516,2]
[336054810,1724682642341,-500.0,0.00011516,2]
[336054811,1724682642352,-500.0,0.00011516,2]
[336054812,1724682642363,-500.0,0.00011516,2]
[336054813,1724682642372,-500.0,0.00011516,2]
[336054814,1724682642384,-500.0,0.00011516,2]
[336054815,1724682642397,-500.0,0.00011516,2]
[336054816,1724682642407,-500.0,0.00011516,2]
[336054817,1724682642419,-570.84815294,0.00011516,2]
[336054818,1724682642430,-500.0,0.00011516,2]
[336054819,1724682642443,-1133.74,0.00011516,2]
[336054820,1724682642455,-500.0,0.00011516,2]
[336054821,1724682642464,-500.0,0.00011516,2]
[336054822,1724682642474,-500.0,0.00011516,2]
[336054823,1724682642484,-500.0,0.00011516,2]
[336054824,1724682642493,-501.17789383,0.00011516,2]
[336054825,1724682642504,-441.30223798,0.00011516,2]
[336054826,1724682642514,-145.94592181,0.00011516,2]
[336054827,1724682642529,-354.05407819,0.00011516,2]
[336054828,1724682642539,-1146.62,0.00011516,2]
[336054829,1724682642549,-500.0,0.00011516,2]
[336054830,1724682642558,-162.75666795,0.00011516,2]
[336054831,1724682642567,-500.0,0.00011516,2]
[336054832,1724682642579,-500.0,0.00011516,2]
[336054833,1724682642589,-500.0,0.00011516,2]
[336054834,1724682642599,-500.0,0.00011516,2]
[336054836,1724682642609,-500.0,0.00011516,2]
[336054838,1724682642619,-500.0,0.00011516,2]
[336054840,1724682642628,-500.0,0.00011516,2]
[336054843,1724682642638,-500.0,0.00011516,2]
[336054846,1724682642648,-500.0,0.00011516,2]
[336054848,1724682642659,-500.0,0.00011516,2]
[336054850,1724682642669,-500.0,0.00011516,2]
[336054852,1724682642683,-512.56,0.00011516,2]
[336054854,1724682642693,-500.0,0.00011516,2]
[336054856,1724682642702,-393.72103642,0.00011516,2]
[336054857,1724682642712,-998.55,0.00011516,2]
[336054858,1724682642722,-500.0,0.00011516,2]
[336054859,1724682642732,-519.63,0.00011516,2]
[336054860,1724682642742,-500.0,0.00011516,2]
[336054861,1724682642752,-500.0,0.00011516,2]
[336054862,1724682642762,-500.0,0.00011516,2]
[336054863,1724682642774,-500.0,0.00011516,2]
[336054865,1724682642784,-500.0,0.00011516,2]
[336054867,1724682642794,-673.71,0.00011516,2]
[336054869,1724682642804,-500.0,0.00011516,2]
[336054871,1724682642815,-500.0,0.00011516,2]
[336054873,1724682642826,-500.0,0.00011516,2]
[336054875,1724682642837,-500.0,0.00011516,2]
[336054877,1724682642849,-500.0,0.00011516,2]
[336054879,1724682642859,-500.0,0.00011516,2]
[336054881,1724682642869,-500.0,0.00011516,2]
[336054883,1724682642879,-645.25,0.00011516,2]
[336054885,1724682642889,-500.0,0.00011516,2]
[336054886,1724682642899,-500.0,0.00011516,2]
[336054887,1724682642909,-698.65,0.00011516,2]
[336054889,1724682642919,-500.0,0.00011516,2]
[336054891,1724682642929,-500.0,0.00011516,2]
[336054894,1724682642939,-500.0,0.00011516,2]
[336054897,1724682642949,-554.7,0.00011516,2]
[336054899,1724682642959,-500.0,0.00011516,2]
[336054900,1724682642968,-885.02,0.00011516,2]
[336054902,1724682642978,-500.0,0.00011516,2]
[336054904,1724682642988,-527.86793306,0.00011516,2]
[336054906,1724682642998,-587.24,0.00011516,2]
[336054908,1724682643008,-500.0,0.00011516,2]
[336054910,1724682643018,-892.42,0.00011516,2]
[336054911,1724682643027,-1206.11,0.00011516,2]
[336054913,1724682643037,-536.52,0.00011516,2]
[336054915,1724682643047,-500.0,0.00011516,2]
[336054917,1724682643058,-500.0,0.00011516,2]
[336054919,1724682643067,-500.0,0.00011516,2]
[336054920,1724682643086,-500.0,0.00011516,2]
[336054921,1724682643096,-500.0,0.00011516,2]
[336054922,1724682643106,-500.0,0.00011516,2]
[336054923,1724682643116,-500.0,0.00011516,2]
[336054924,1724682643126,-542.47,0.00011516,2]
[336054925,1724682643135,-500.0,0.00011516,2]
[336054926,1724682643145,-741.15,0.00011516,2]
[336054927,1724682643155,-500.0,0.00011516,2]
[336054928,1724682643165,-500.0,0.00011516,2]
[336054929,1724682643175,-500.0,0.00011516,2]
[336054930,1724682643185,-500.0,0.00011516,2]
[336054931,1724682643195,-442.9602466,0.00011516,2]
[336054932,1724682643205,-500.0,0.00011516,2]
[336054933,1724682643215,-500.0,0.00011516,2]
[336054934,1724682643225,-500.0,0.00011516,2]
[336054935,1724682643235,-500.0,0.00011516,2]
[336054936,1724682643245,-500.0,0.00011516,2]
[336054937,1724682643255,-514.19436364,0.00011516,2]
[336054938,1724682643265,-658.42,0.00011516,2]
[336054939,1724682643275,-612.04,0.00011516,2]
[336054940,1724682643286,-500.0,0.00011516,2]
[336054941,1724682643300,-724.95,0.00011516,2]
[336054942,1724682643310,-500.0,0.00011516,2]
[336054943,1724682643322,-500.60833014,0.00011516,2]
[336054944,1724682643337,-500.0,0.00011516,2]
[336054945,1724682643348,-500.0,0.00011516,2]
[336054946,1724682643358,-500.0,0.00011516,2]
[336054947,1724682643368,-500.0,0.00011516,2]
[336054948,1724682643378,-500.0,0.00011516,2]
[336054949,1724682643388,-500.0,0.00011516,2]
[336054950,1724682643397,-887.95,0.00011516,2]
[336054951,1724682643408,-664.03,0.00011516,2]
[336054952,1724682643417,-500.0,0.00011516,2]
[336054953,1724682643427,-500.0,0.00011516,2]
[336054954,1724682643437,-500.0,0.00011516,2]
[336054966,1724682643618,-500.0,0.00011516,2]
[336054969,1724682643658,-500.0,0.00011516,2]
[336054971,1724682643669,-500.0,0.00011516,2]
[336054974,1724682643679,-504.01302944,0.00011516,2]
[336054977,1724682643689,-500.0,0.00011516,2]
[336054979,1724682643698,-500.0,0.00011516,2]
[336054981,1724682643707,-500.0,0.00011516,2]
[336054982,1724682643717,-500.0,0.00011516,2]
[336054983,1724682643727,-500.0,0.00011516,2]
[336054984,1724682643736,-612.73,0.00011516,2]
[336054985,1724682643746,-548.79,0.00011516,2]
[336054986,1724682643756,-758.97,0.00011516,2]
[336054987,1724682643766,-500.0,0.00011516,2]
[336054988,1724682643780,-500.0,0.00011516,2]
[336054989,1724682643791,-500.0,0.00011516,2]
[336054990,1724682643800,-500.0,0.00011516,2]
[336054991,1724682643810,-500.0,0.00011516,2]
[336054992,1724682643821,-500.0,0.00011516,2]
[336054993,1724682643835,-502.16687777,0.00011516,2]
[336054994,1724682643844,-500.0,0.00011516,2]
[336054995,1724682643855,-503.03061336,0.00011516,2]
[336054996,1724682643865,-500.0,0.00011516,2]
[336054997,1724682643874,-500.0,0.00011516,2]
[336054998,1724682643883,-500.0,0.00011516,2]
[336054999,1724682643893,-500.0,0.00011516,2]
[336055000,1724682643903,-500.0,0.00011516,2]
[336055001,1724682643914,-500.0,0.00011516,2]
[336055002,1724682643924,-500.0,0.00011516,2]
[336055003,1724682643935,-741.09,0.00011516,2]
[336055004,1724682643945,-500.0,0.00011516,2]
[336055005,1724682643955,-500.0,0.00011516,2]
[336055006,1724682643965,-547.25,0.00011516,2]
[336055007,1724682643975,-500.0,0.00011516,2]
[336055008,1724682643984,-500.0,0.00011516,2]
[336055009,1724682643994,-510.80994995,0.00011516,2]
[336055010,1724682644005,-500.0,0.00011516,2]
[336055011,1724682644016,-500.0,0.00011516,2]
[336055012,1724682644026,-500.0,0.00011516,2]
[336055013,1724682644037,-500.0,0.00011516,2]
[336055014,1724682644048,-500.0,0.00011516,2]
[336055015,1724682644059,-500.0,0.00011516,2]
[336055016,1724682644069,-500.0,0.00011516,2]
[336055017,1724682644082,-595.47,0.00011516,2]
[336055018,1724682644093,-500.0,0.00011516,2]
[336055019,1724682644104,-500.0,0.00011516,2]
[336055020,1724682644117,-500.0,0.00011516,2]
[336055021,1724682644127,-1823.92,0.00011516,2]
[336055022,1724682644138,-542.24,0.00011516,2]
[336055023,1724682644148,-285.65124538,0.00011517,2]
[336055024,1724682644158,-678.36,0.00011517,2]
[336055025,1724682644168,-500.0,0.00011517,2]
[336055026,1724682644178,-500.0,0.00011517,2]
[336055027,1724682644190,-588.47,0.00011517,2]
[336055028,1724682644200,-550.13,0.00011517,2]
[336055029,1724682644210,-500.0,0.00011517,2]
[336055030,1724682644220,-500.0,0.00011517,2]
[336055031,1724682644230,-500.0,0.00011517,2]
[336055032,1724682644242,-644.2,0.00011517,2]
[336055033,1724682644253,-500.0,0.00011517,2]
[336055034,1724682644264,-500.0,0.00011517,2]
[336055035,1724682644274,-500.0,0.00011517,2]
[336055036,1724682644283,-500.0,0.00011517,2]
[336055037,1724682644292,-500.0,0.00011517,2]
[336055038,1724682644304,-825.34,0.00011517,2]
[336055039,1724682644314,-500.0,0.00011517,2]
[336055040,1724682644328,-902.01,0.00011517,2]
[336055041,1724682644337,-705.05,0.00011517,2]
[336055042,1724682644347,-500.0,0.00011517,2]
[336055043,1724682644357,-792.92,0.00011517,2]
[336055044,1724682644367,-500.0,0.00011517,2]
[336055045,1724682644376,-500.0,0.00011517,2]
[336055046,1724682644386,-773.97,0.00011517,2]
[336055047,1724682644395,-500.0,0.00011517,2]
[336055048,1724682644405,-500.0,0.00011517,2]
[336055049,1724682644414,-500.0,0.00011517,2]
[336055050,1724682644424,-500.0,0.00011517,2]
[336055051,1724682644435,-500.0,0.00011517,2]
[336055052,1724682644444,-500.0,0.00011517,2]
[336055053,1724682644455,-500.0,0.00011517,2]
[336055054,1724682644465,-500.0,0.00011517,2]
[336055055,1724682644476,-500.0,0.00011517,2]
[336055056,1724682644486,-579.01,0.00011517,2]
[336055057,1724682644495,-633.63,0.00011517,2]
[336055058,1724682644504,-724.0,0.00011517,2]
[336055059,1724682644514,-500.0,0.00011517,2]
[336055060,1724682644523,-1230.77,0.00011517,2]
[336055061,1724682644533,-500.0,0.00011517,2]
[336055062,1724682644542,-500.0,0.00011517,2]
[336055063,1724682644552,-505.86,0.00011517,2]
[336055064,1724682644561,-500.0,0.00011517,2]
[336055065,1724682644571,-500.0,0.00011517,2]
[336055066,1724682644584,-500.0,0.00011517,2]
[336055067,1724682644594,-500.0,0.00011517,2]
[336055068,1724682644604,-502.92353786,0.00011517,2]
[336055069,1724682644615,-669.71,0.00011517,2]
[336055070,1724682644625,-500.0,0.00011517,2]
[336055071,1724682644635,-1106.83,0.00011517,2]
[336055072,1724682644645,-500.0,0.00011517,2]
[336055073,1724682644655,-500.0,0.00011517,2]
[336055074,1724682644665,-500.0,0.00011517,2]
[336055075,1724682644676,-500.0,0.00011517,2]
[336055076,1724682644686,-1085.1,0.00011517,2]
[336055077,1724682644696,-500.0,0.00011517,2]
[336055078,1724682644706,-500.0,0.00011517,2]
[336055079,1724682644717,-610.13,0.00011517,2]
[336055080,1724682644727,-500.0,0.00011517,2]
[336055081,1724682644737,-500.0,0.00011517,2]
[336055082,1724682644747,-1181.46,0.00011517,2]
[336055083,1724682644756,-938.91,0.00011517,2]
[336055084,1724682644766,-500.0,0.00011517,2]
[336055085,1724682644780,-568.84,0.00011517,2]
[336055086,1724682644790,-500.0,0.00011517,2]
[336055087,1724682644800,-553.38971209,0.00011517,2]
[336055088,1724682644811,-500.0,0.00011517,2]
[336055089,1724682644821,-1039.55,0.00011517,2]
[336055090,1724682644832,-500.0,0.00011517,2]
[336055091,1724682644842,-554.69,0.00011517,2]
[336055092,1724682644853,-587.78,0.00011517,2]
[336055093,1724682644863,-500.0,0.00011517,2]
[336055094,1724682644873,-500.0,0.00011517,2]
[336055095,1724682644883,-1016.05,0.00011517,2]
[336055096,1724682644893,-548.65,0.00011517,2]
[336055097,1724682644902,-548.65,0.00011517,2]
[336055098,1724682644912,-548.65,0.00011517,2]
[336055099,1724682644921,-548.65,0.00011517,2]
[336055100,1724682644931,-500.0,0.00011517,2]
[336055101,1724682644941,-920.7,0.00011517,2]
[336055102,1724682644951,-500.0,0.00011517,2]
[336055103,1724682644961,-500.0,0.00011517,2]
[336055104,1724682644971,-500.0,0.00011517,2]
[336055105,1724682644981,-241.94,0.00011517,2]
[336055106,1724682644991,-801.09,0.00011517,2]
[336055107,1724682645001,-500.0,0.00011517,2]
[336055108,1724682645011,-1221.79,0.00011517,2]
[336055109,1724682645021,-1823.92,0.00011517,2]
[336055110,1724682645030,-1823.92,0.00011517,2]
[336055111,1724682645040,-1823.92,0.00011517,2]
[336055112,1724682645050,-1823.92,0.00011517,2]
[336055113,1724682645059,-502.96034577,0.00011518,2]
[336055114,1724682645069,-504.91529324,0.00011518,2]
[336055115,1724682645081,-500.0,0.00011518,2]
[336055116,1724682645093,-500.0,0.00011518,2]
[336055117,1724682645103,-554.87072823,0.00011518,2]
[336055118,1724682645113,-500.0,0.00011518,2]
[336055119,1724682645123,-500.0,0.00011518,2]
[336055120,1724682645133,-500.0,0.00011518,2]
[336055121,1724682645143,-500.0,0.00011518,2]
[336055122,1724682645153,-500.0,0.00011518,2]
[336055123,1724682645162,-154.71377951,0.00011518,2]
[336055124,1724682645173,-500.0,0.00011518,2]
[336055125,1724682645183,-501.97083121,0.00011518,2]
[336055126,1724682645192,-500.0,0.00011518,2]
[336055127,1724682645202,-501.9178926,0.00011518,2]
[336055128,1724682645213,-510.32989046,0.00011518,2]
[336055129,1724682645223,-500.0,0.00011518,2]
[336055130,1724682645233,-500.0,0.00011518,2]
[336055131,1724682645242,-500.0,0.00011518,2]
[336055132,1724682645252,-500.0,0.00011518,2]
[336055133,1724682645261,-500.0,0.00011518,2]
[336055134,1724682645271,-832.71,0.00011518,2]
[336055135,1724682645281,-500.0,0.00011518,2]
[336055136,1724682645291,-500.0,0.00011518,2]
[336055137,1724682645303,-521.57,0.00011518,2]
[336055138,1724682645312,-500.0,0.00011518,2]
[336055139,1724682645323,-500.0,0.00011518,2]
[336055140,1724682645334,-500.0,0.00011518,2]
[336055141,1724682645344,-500.0,0.00011518,2]
[336055142,1724682645354,-500.0,0.00011518,2]
[336055143,1724682645364,-665.17,0.00011518,2]
[336055144,1724682645374,-500.0,0.00011518,2]
[336055145,1724682645384,-500.0,0.00011518,2]
[336055146,1724682645394,-500.0,0.00011518,2]
[336055147,1724682645404,-678.27,0.00011518,2]
[336055148,1724682645414,-500.0,0.00011518,2]
[336055149,1724682645425,-500.0,0.00011518,2]
[336055150,1724682645435,-500.0,0.00011518,2]
[336055151,1724682645445,-829.02,0.00011518,2]
[336055152,1724682645455,-500.0,0.00011518,2]
[336055153,1724682645466,-500.0,0.00011518,2]
[336055154,1724682645476,-500.0,0.00011518,2]
[336055155,1724682645486,-500.0,0.00011518,2]
[336055156,1724682645495,-500.0,0.00011518,2]
[336055157,1724682645506,-500.0,0.00011518,2]
[336055158,1724682645515,-626.4862909,0.00011518,2]
[336055159,1724682645525,-500.0,0.00011518,2]
[336055160,1724682645535,-500.0,0.00011518,2]
[336055161,1724682645545,-576.36,0.00011518,2]
[336055162,1724682645554,-500.0,0.00011518,2]
[336055164,1724682645563,-614.28,0.00011518,2]
[336055165,1724682645574,-564.72001933,0.00011518,2]
[336055166,1724682645583,-500.0,0.00011518,2]
[336055167,1724682645593,-500.0,0.00011518,2]
[336055169,1724682645603,-500.0,0.00011518,2]
[336055170,1724682645613,-500.0,0.00011518,2]
[336055171,1724682645623,-500.0,0.00011518,2]
[336055172,1724682645632,-500.0,0.00011518,2]
[336055173,1724682645642,-195.57055882,0.00011518,2]
[336055174,1724682645652,-500.0,0.00011518,2]
[336055175,1724682645662,-500.0,0.00011518,2]
[336055176,1724682645671,-502.08754906,0.00011518,2]
[336055177,1724682645680,-881.93,0.00011518,2]
[336055179,1724682645689,-500.0,0.00011518,2]
[336055180,1724682645700,-500.0,0.00011518,2]
[336055181,1724682645710,-500.0,0.00011518,2]
[336055182,1724682645719,-500.0,0.00011518,2]
[336055183,1724682645729,-502.97381334,0.00011518,2]
[336055184,1724682645738,-500.0,0.00011518,2]
[336055185,1724682645749,-500.0,0.00011518,2]
[336055186,1724682645762,-500.0,0.00011518,2]
[336055187,1724682645772,-258.8,0.00011518,2]
[336055188,1724682645785,-500.0,0.00011518,2]
[336055189,1724682645795,-500.0,0.00011518,2]
[336055190,1724682645804,-500.0,0.00011518,2]
[336055191,1724682645815,-627.53827637,0.00011518,2]
[336055192,1724682645827,-500.0,0.00011518,2]
[336055193,1724682645837,-1460.17,0.00011518,2]
[336055194,1724682645848,-500.0,0.00011518,2]
[336055195,1724682645859,-1035.4,0.00011518,2]
[336055196,1724682645870,-505.69,0.00011518,2]
[336055197,1724682645880,-828.67,0.00011518,2]
[336055198,1724682645889,-660.32,0.00011518,2]
[336055199,1724682645899,-685.49,0.00011518,2]
[336055200,1724682645908,-500.0,0.00011518,2]
[336055201,1724682645918,-506.07633518,0.00011518,2]
[336055202,1724682645927,-544.78,0.00011518,2]
[336055203,1724682645937,-500.0,0.00011518,2]
[336055204,1724682645947,-993.74,0.00011518,2]
[336055205,1724682645957,-1022.13,0.00011518,2]
[336055206,1724682645967,-621.62,0.00011518,2]
[336055207,1724682645977,-500.0,0.00011518,2]
[336055208,1724682645988,-500.0,0.00011518,2]
[336055209,1724682645999,-611.27,0.00011518,2]
[336055210,1724682646009,-501.14955669,0.00011518,2]
[336055211,1724682646021,-500.0,0.00011518,2]
[336055212,1724682646033,-500.0,0.00011518,2]
[336055213,1724682646043,-691.38,0.00011518,2]
[336055215,1724682646054,-500.0,0.00011518,2]
[336055217,1724682646065,-564.72,0.00011518,2]
[336055219,1724682646076,-708.52,0.00011518,2]
[336055221,1724682646086,-500.0,0.00011518,2]
[336055222,1724682646095,-500.0,0.00011518,2]
[336055224,1724682646105,-618.53,0.00011518,2]
[336055227,1724682646115,-500.0,0.00011518,2]
[336055229,1724682646126,-533.03,0.00011518,2]
[336055231,1724682646136,-500.0,0.00011518,2]
[336055232,1724682646146,-666.9,0.00011518,2]
[336055234,1724682646155,-506.26052926,0.00011518,2]
[336055236,1724682646165,-691.93,0.00011518,2]
[336055238,1724682646174,-500.0,0.00011518,2]
[336055240,1724682646183,-500.0,0.00011518,2]
[336055242,1724682646193,-605.88,0.00011518,2]
[336055249,1724682646248,-500.0,0.00011518,2]
[336055251,1724682646257,-500.0,0.00011518,2]
[336055253,1724682646267,-500.0,0.00011518,2]
[336055255,1724682646276,-513.83679334,0.00011518,2]
[336055257,1724682646286,-500.0,0.00011518,2]
[336055259,1724682646295,-500.0,0.00011518,2]
[336055260,1724682646305,-501.46148041,0.00011518,2]
[336055262,1724682646315,-500.0,0.00011518,2]
[336055264,1724682646324,-672.92,0.00011518,2]
[336055266,1724682646338,-617.16,0.00011518,2]
[336055268,1724682646347,-883.75,0.00011518,2]
[336055270,1724682646359,-1012.42,0.00011518,2]
[336055272,1724682646369,-500.0,0.00011518,2]
[336055275,1724682646378,-500.0,0.00011518,2]
[336055278,1724682646387,-717.2,0.00011518,2]
[336055280,1724682646396,-843.93,0.00011518,2]
[336055282,1724682646406,-500.0,0.00011518,2]
[336055284,1724682646415,-500.0,0.00011518,2]
[336055286,1724682646425,-857.16,0.00011518,2]
[336055288,1724682646435,-157.75123452,0.00011518,2]
[336055290,1724682646445,-500.0,0.00011518,2]
[336055292,1724682646456,-500.0,0.00011518,2]
[336055294,1724682646469,-505.60169981,0.00011518,2]
[336055296,1724682646478,-500.0,0.00011518,2]
[336055298,1724682646487,-525.22,0.00011518,2]
[336055300,1724682646496,-500.0,0.00011518,2]
[336055302,1724682646506,-632.34292209,0.00011518,2]
[336055304,1724682646515,-500.0,0.00011518,2]
[336055306,1724682646525,-500.0,0.00011518,2]
[336055309,1724682646536,-1434.48,0.00011518,2]
[336055311,1724682646545,-500.0,0.00011518,2]
[336055313,1724682646554,-587.01,0.00011518,2]
[336055315,1724682646563,-501.04424173,0.00011518,2]